Workbook

Sheet June13c
A1: June 13 Calculator
B2: q1 | C2: q2 | D2: q3 | E2: q4 | F2: q5 | G2: q6 | H2: q7 | I2: q8 | J2: q9 | K2: q10 | L2: q11 | M2: q12 | N2: q13a | O2: q13b | P2: q14 | Q2: q15a,b | R2: q15b | S2: q16 | T2: q17 | U2: q18 | V2: q19 | W2: q20 | X2: q21 | Y2: q22 | Z2: q23 | AA2: q24 | AB2: q25
B3: Surface Area | C3: Proportion Recipe Questions | D3: AO3 Multiplication Problem | E3: Probability and Relative Frequency | F3: Questionnaires | G3: Functional Maths Questions | H3: Ratio | I3: Area of Compound Shapes | J3: Angles in Parallel Lines | K3: Trial and Improvement | L3: Probability and Problem Solving | M3: Solving Equations | N3: midpoint | O3: Y=MX+ C Harder | P3: Compound Interest & Depreciation | Q3: Drawing Quadratic Graphs | R3: Solving Simultaneous Equations Graphically | S3: Circle Theorems | T3: Box plots | U3: More Difficult Rearranging Formulae | V3: Expand & Factorise Quadratics | W3: Trigonometry | X3: Stratified Sampling | Y3: Money problem Solving | Z3: Upper and Lower Bounds | AA3: Sine, Cosine Rules & Area of Triangles | AB3: Solving Quadratics Using the Formula
A4: Max Mark | B4: 3 | C4: 4 | D4: 4 | E4: 3 | F4: 5 | G4: 4 | H4: 4 | I4: 4 | J4: 4 | K4: 4 | L4: 3 | M4: 5 | N4: 2 | O4: 2 | P4: 4 | Q4: 4 | R4: 2 | S4: 5 | T4: 4 | U4: 3 | V4: 4 | W4: 3 | X4: 2 | Y4: 3 | Z4: 4 | AA4: 5 | AB4: 6
A5: Class Average (%) | B5: =AVERAGE(B9:B40)/B$4 -> 0.5714285714 | C5: =AVERAGE(C9:C40)/C$4 -> 0.4732142857 | D5: 0.5178571429 | E5: 0.4880952381 | F5: 0.5428571429 | G5: 0.4464285714 | H5: 0.4017857143 | I5: 0.5 | J5: 0.4375 | K5: 0.4464285714 | L5: 0.5 | M5: 0.5428571429 | N5: 0.4642857143 | O5: 0.3571428571 | P5: 0.4732142857 | Q5: 0.5535714286 | R5: 0.4285714286 | S5: 0.4928571429 | T5: 0.5267857143 | U5: 0.5595238095 | V5: 0.5 | W5: 0.5714285714 | X5: 0.4642857143 | Y5: 0.4761904762 | Z5: 0.4285714286 | AA5: 0.45 | AB5: 0.4404761905
A6: Standard Deviation | B6: =STDEV(B9:B39)/B$4 -> 0.3253000243 | C6: =STDEV(C9:C39)/C$4 -> 0.3356812153 | D6: 0.2881017971 | E6: 0.2793605699 | F6: 0.2974316871 | G6: 0.2993599875 | H6: 0.2913830821 | I6: 0.3042903097 | J6: 0.2602082499 | K6: 0.3069951657 | L6: 0.3207501495 | M6: 0.3213727171 | N6: 0.3021089891 | O6: 0.3563483225 | P6: 0.3622159533 | Q6: 0.2486737307 | R6: 0.3526168237 | S6: 0.2955579425 | T6: 0.3068604891 | U6: 0.3277755358 | V6: 0.3402069087 | W6: 0.3123934269 | X6: 0.3581994951 | Y6: 0.3563483225 | Z6: 0.2875273164 | AA6: 0.2860976264 | AB6: 0.2876550779
B7: q1 | C7: q2 | D7: q3 | E7: q4 | F7: q5 | G7: q6 | H7: q7 | I7: q8 | J7: q9 | K7: q10 | L7: q11 | M7: q12 | N7: q13a | O7: q13b | P7: q14 | Q7: q15a,b | R7: q15b | S7: q16 | T7: q17 | U7: q18 | V7: q19 | W7: q20 | X7: q21 | Y7: q22 | Z7: q23 | AA7: q24 | AB7: q25 | AC7: Total Marks | AD7: Grade
A8: Name
A9: Sample student 1 | B9: =ROUND(RAND()*B$4,0) -> 2 | C9: =ROUND(RAND()*C$4,0) -> 3 | D9: 3 | E9: 1 | F9: 1 | G9: 4 | H9: 3 | I9: 1 | J9: 1 | K9: 3 | L9: 2 | M9: 4 | N9: 1 | O9: 1 | P9: 3 | Q9: 3 | R9: 1 | S9: 4 | T9: 3 | U9: 3 | V9: 0 | W9: 3 | X9: 0 | Y9: 1 | Z9: 2 | AA9: 0 | AB9: 0 | AC9: =IF(AB9="","",SUM(B9:AB9)) -> 53 | AD9: =IF(AC9="","",VLOOKUP(AC9,$AF$13:$AG$34,2)) -> B3
A10: Sample student 2 | B10: =ROUND(RAND()*B$4,0) -> 2 | C10: 2 | D10: 0 | E10: 1 | F10: 1 | G10: 2 | H10: 2 | I10: 2 | J10: 1 | K10: 3 | L10: 1 | M10: 5 | N10: 1 | O10: 0 | P10: 1 | Q10: 3 | R10: 2 | S10: 1 | T10: 3 | U10: 1 | V10: 2 | W10: 3 | X10: 0 | Y10: 2 | Z10: 2 | AA10: 3 | AB10: 1 | AC10: =IF(AB10="","",SUM(B10:AB10)) -> 47 | AD10: =IF(AC10="","",VLOOKUP(AC10,$AF$13:$AG$34,2)) -> C1 | AF10: Grade Boundaries
A11: Sample student 3 | B11: 1 | C11: 4 | D11: 2 | E11: 1 | F11: 3 | G11: 2 | H11: 3 | I11: 2 | J11: 2 | K11: 2 | L11: 1 | M11: 3 | N11: 1 | O11: 2 | P11: 2 | Q11: 1 | R11: 0 | S11: 2 | T11: 1 | U11: 1 | V11: 1 | W11: 3 | X11: 1 | Y11: 0 | Z11: 2 | AA11: 2 | AB11: 4 | AC11: 49 | AD11: B3
A12: Sample student 4 | B12: 0 | C12: 4 | D12: 1 | E12: 1 | F12: 3 | G12: 0 | H12: 1 | I12: 4 | J12: 0 | K12: 2 | L12: 1 | M12: 3 | N12: 1 | O12: 1 | P12: 1 | Q12: 4 | R12: 0 | S12: 3 | T12: 1 | U12: 1 | V12: 4 | W12: 2 | X12: 2 | Y12: 3 | Z12: 1 | AA12: 3 | AB12: 2 | AC12: 49 | AD12: B3 | AF12: Non- Calc
A13: Sample student 5 | B13: 2 | C13: 2 | D13: 2 | E13: 2 | F13: 2 | G13: 0 | H13: 2 | I13: 3 | J13: 0 | K13: 1 | L13: 1 | M13: 4 | N13: 1 | O13: 0 | P13: 2 | Q13: 2 | R13: 0 | S13: 3 | T13: 3 | U13: 3 | V13: 4 | W13: 0 | X13: 0 | Y13: 2 | Z13: 2 | AA13: 0 | AB13: 4 | AC13: 47 | AD13: C1 | AF13: 0 | AG13: F3
A14: Sample student 6 | B14: 1 | C14: 0 | D14: 3 | E14: 1 | F14: 4 | G14: 1 | H14: 2 | I14: 1 | J14: 2 | K14: 0 | L14: 1 | M14: 4 | N14: 1 | O14: 0 | P14: 3 | Q14: 1 | R14: 1 | S14: 4 | T14: 2 | U14: 2 | V14: 3 | W14: 1 | X14: 1 | Y14: 3 | Z14: 4 | AA14: 3 | AB14: 6 | AC14: 55 | AD14: B2 | AF14: =AF13+(AF16-AF13)/3 -> 2.333333333 | AG14: F2
A15: Sample student 7 | B15: 2 | C15: 0 | D15: 2 | E15: 2 | F15: 4 | G15: 1 | H15: 0 | I15: 0 | J15: 3 | K15: 1 | L15: 2 | M15: 3 | N15: 1 | O15: 1 | P15: 0 | Q15: 2 | R15: 1 | S15: 2 | T15: 3 | U15: 2 | V15: 1 | W15: 2 | X15: 2 | Y15: 1 | Z15: 2 | AA15: 4 | AB15: 1 | AC15: 45 | AD15: C1 | AF15: =AF13+2*(AF16-AF13)/3 -> 4.666666667 | AG15: F1
A16: Sample student 8 | B16: 2 | C16: 0 | D16: 4 | E16: 1 | F16: 2 | G16: 2 | H16: 0 | I16: 3 | J16: 3 | K16: 1 | L16: 1 | M16: 4 | N16: 0 | O16: 2 | P16: 4 | Q16: 3 | R16: 0 | S16: 4 | T16: 3 | U16: 0 | V16: 2 | W16: 3 | X16: 0 | Y16: 2 | Z16: 3 | AA16: 3 | AB16: 4 | AC16: 56 | AD16: B2 | AF16: 7 | AG16: E3
A17: Sample student 9 | B17: 3 | C17: 1 | D17: 1 | E17: 1 | F17: 4 | G17: 3 | H17: 1 | I17: 2 | J17: 3 | K17: 4 | L17: 0 | M17: 2 | N17: 2 | O17: 1 | P17: 3 | Q17: 3 | R17: 0 | S17: 5 | T17: 0 | U17: 1 | V17: 3 | W17: 1 | X17: 2 | Y17: 1 | Z17: 1 | AA17: 4 | AB17: 2 | AC17: 54 | AD17: B3 | AF17: =AF16+(AF19-AF16)/3 -> 9.333333333 | AG17: E2
A18: Sample student 10 | B18: 3 | C18: 2 | D18: 4 | E18: 2 | F18: 0 | G18: 2 | H18: 2 | I18: 1 | J18: 3 | K18: 1 | L18: 3 | M18: 4 | N18: 0 | O18: 1 | P18: 4 | Q18: 1 | R18: 1 | S18: 3 | T18: 3 | U18: 2 | V18: 1 | W18: 2 | X18: 0 | Y18: 3 | Z18: 3 | AA18: 3 | AB18: 2 | AC18: 56 | AD18: B2 | AF18: =AF16+2*(AF19-AF16)/3 -> 11.66666667 | AG18: E1
A19: Sample student 11 | B19: 2 | C19: 2 | D19: 1 | E19: 3 | F19: 2 | G19: 3 | H19: 0 | I19: 3 | J19: 1 | K19: 3 | L19: 2 | M19: 4 | N19: 1 | O19: 1 | P19: 0 | Q19: 1 | R19: 2 | S19: 1 | T19: 1 | U19: 0 | V19: 4 | W19: 3 | X19: 2 | Y19: 2 | Z19: 3 | AA19: 1 | AB19: 5 | AC19: 53 | AD19: B3 | AF19: 14 | AG19: D3
A20: Sample student 12 | B20: 2 | C20: 0 | D20: 3 | E20: 2 | F20: 4 | G20: 2 | H20: 3 | I20: 4 | J20: 1 | K20: 0 | L20: 1 | M20: 1 | N20: 1 | O20: 1 | P20: 4 | Q20: 3 | R20: 0 | S20: 5 | T20: 3 | U20: 2 | V20: 3 | W20: 1 | X20: 1 | Y20: 2 | Z20: 3 | AA20: 2 | AB20: 4 | AC20: 58 | AD20: B2 | AF20: =AF19+(AF22-AF19)/3 -> 19 | AG20: D2
A21: Sample student 13 | B21: 0 | C21: 4 | D21: 2 | E21: 1 | F21: 2 | G21: 1 | H21: 0 | I21: 3 | J21: 2 | K21: 2 | L21: 1 | M21: 4 | N21: 1 | O21: 2 | P21: 4 | Q21: 1 | R21: 2 | S21: 2 | T21: 2 | U21: 3 | V21: 1 | W21: 1 | X21: 1 | Y21: 1 | Z21: 0 | AA21: 3 | AB21: 1 | AC21: 47 | AD21: C1 | AF21: =AF19+2*(AF22-AF19)/3 -> 24 | AG21: D1
A22: Sample student 14 | B22: 2 | C22: 3 | D22: 2 | E22: 2 | F22: 4 | G22: 4 | H22: 1 | I22: 2 | J22: 3 | K22: 2 | L22: 2 | M22: 0 | N22: 0 | O22: 2 | P22: 4 | Q22: 2 | R22: 0 | S22: 1 | T22: 1 | U22: 2 | V22: 0 | W22: 2 | X22: 1 | Y22: 2 | Z22: 1 | AA22: 4 | AB22: 2 | AC22: 51 | AD22: B3 | AF22: 29 | AG22: C3
A23: Sample student 15 | B23: 3 | C23: 0 | D23: 1 | E23: 0 | F23: 3 | G23: 0 | H23: 1 | I23: 3 | J23: 1 | K23: 0 | L23: 3 | M23: 0 | N23: 1 | O23: 0 | P23: 0 | Q23: 3 | R23: 2 | S23: 2 | T23: 3 | U23: 3 | V23: 2 | W23: 1 | X23: 1 | Y23: 0 | Z23: 2 | AA23: 1 | AB23: 3 | AC23: 39 | AD23: C2 | AF23: =AF22+(AF25-AF22)/3 -> 35.33333333 | AG23: C2
A24: Sample student 16 | B24: 2 | C24: 1 | D24: 3 | E24: 2 | F24: 5 | G24: 3 | H24: 1 | I24: 2 | J24: 2 | K24: 2 | L24: 3 | M24: 1 | N24: 1 | O24: 1 | P24: 1 | Q24: 2 | R24: 0 | S24: =ROUND(RAND()*S$4,0) -> 0 | T24: 1 | U24: 1 | V24: 3 | W24: 1 | X24: 0 | Y24: 1 | Z24: 1 | AA24: 3 | AB24: 1 | AC24: 44 | AD24: C1 | AF24: =AF22+2*(AF25-AF22)/3 -> 41.66666667 | AG24: C1
A25: Sample student 17 | B25: 0 | C25: 2 | D25: 2 | E25: 1 | F25: 1 | G25: 1 | H25: 2 | I25: 0 | J25: 3 | K25: 2 | L25: 2 | M25: 2 | N25: 0 | O25: 1 | P25: 0 | Q25: =ROUND(RAND()*Q$4,0) -> 1 | R25: 1 | S25: 1 | T25: 2 | U25: 1 | V25: 2 | W25: 2 | X25: 0 | Y25: 0 | Z25: 3 | AA25: 1 | AB25: 6 | AC25: 39 | AD25: C2 | AF25: 48 | AG25: B3
A26: Sample student 18 | B26: =ROUND(RAND()*B$4,0) -> 2 | C26: 2 | D26: 4 | E26: 2 | F26: 1 | G26: 2 | H26: 0 | I26: 1 | J26: 3 | K26: 3 | L26: 1 | M26: 3 | N26: 1 | O26: 1 | P26: 0 | Q26: 3 | R26: 1 | S26: 1 | T26: 2 | U26: 3 | V26: 1 | W26: 1 | X26: 1 | Y26: 0 | Z26: 0 | AA26: 0 | AB26: 3 | AC26: 42 | AD26: C1 | AF26: =AF25+(AF28-AF25)/3 -> 54.66666667 | AG26: B2
A27: Sample student 19 | B27: 2 | C27: 1 | D27: 3 | E27: 1 | F27: 4 | G27: 3 | H27: 3 | I27: 1 | J27: 2 | K27: 3 | L27: 0 | M27: 0 | N27: 2 | O27: 1 | P27: 2 | Q27: 3 | R27: 1 | S27: 3 | T27: 3 | U27: 3 | V27: 3 | W27: 1 | X27: 1 | Y27: 2 | Z27: 2 | AA27: 3 | AB27: 1 | AC27: 54 | AD27: B3 | AF27: =AF25+2*(AF28-AF25)/3 -> 61.33333333 | AG27: B1
A28: Sample student 20 | B28: 0 | C28: 4 | D28: 3 | E28: 2 | F28: 2 | G28: 1 | H28: 2 | I28: 2 | J28: 0 | K28: 3 | L28: 1 | M28: 4 | N28: 2 | O28: 0 | P28: 1 | Q28: 1 | R28: 0 | S28: 1 | T28: 4 | U28: 2 | V28: 1 | W28: 3 | X28: 1 | Y28: 0 | Z28: 0 | AA28: 3 | AB28: 4 | AC28: 47 | AD28: C1 | AF28: 68 | AG28: A3
A29: Sample student 21 | B29: 3 | C29: 2 | D29: 0 | E29: 0 | F29: 5 | G29: 2 | H29: 0 | I29: 3 | J29: 1 | K29: 0 | L29: 0 | M29: 4 | N29: 1 | O29: 0 | P29: 0 | Q29: 3 | R29: 1 | S29: 2 | T29: 3 | U29: 1 | V29: 1 | W29: 1 | X29: 1 | Y29: 2 | Z29: 3 | AA29: 4 | AB29: 4 | AC29: 47 | AD29: C1 | AF29: =AF28+(AF31-AF28)/3 -> 73.66666667 | AG29: A2
A30: Sample student 22 | B30: 2 | C30: 3 | D30: 1 | E30: 0 | F30: 3 | G30: 3 | H30: 2 | I30: 4 | J30: 2 | K30: 2 | L30: 1 | M30: 0 | N30: 1 | O30: 0 | P30: 2 | Q30: 1 | R30: 1 | S30: 1 | T30: 4 | U30: 2 | V30: 0 | W30: 3 | X30: 1 | Y30: 0 | Z30: 2 | AA30: 3 | AB30: 5 | AC30: 49 | AD30: B3 | AF30: =AF28+2*(AF31-AF28)/3 -> 79.33333333 | AG30: A1
A31: Sample student 23 | B31: 2 | C31: 2 | D31: 1 | E31: 1 | F31: 3 | G31: 0 | H31: 3 | I31: 1 | J31: 2 | K31: 3 | L31: 3 | M31: 3 | N31: 1 | O31: 0 | P31: 1 | Q31: 2 | R31: 1 | S31: 4 | T31: 0 | U31: 1 | V31: 0 | W31: 2 | X31: 1 | Y31: 0 | Z31: 3 | AA31: 1 | AB31: 3 | AC31: 44 | AD31: C1 | AF31: 85 | AG31: A*3
A32: Sample student 24 | B32: 2 | C32: 3 | D32: 1 | E32: 3 | F32: 0 | G32: 1 | H32: 3 | I32: 1 | J32: 1 | K32: 0 | L32: 3 | M32: 1 | N32: 2 | O32: 0 | P32: 2 | Q32: 2 | R32: 1 | S32: 1 | T32: 0 | U32: 0 | V32: 4 | W32: 1 | X32: 0 | Y32: 3 | Z32: 1 | AA32: 0 | AB32: 0 | AC32: 36 | AD32: C2 | AF32: =AF31+(AF34-AF31)/3 -> 90 | AG32: A*2
A33: Sample student 25 | B33: 3 | C33: 2 | D33: 3 | E33: 3 | F33: 5 | G33: 2 | H33: 3 | I33: 3 | J33: 0 | K33: 1 | L33: 0 | M33: 4 | N33: 1 | O33: 0 | P33: 1 | Q33: 3 | R33: 1 | S33: 4 | T33: 4 | U33: 1 | V33: 3 | W33: 0 | X33: 2 | Y33: 1 | Z33: 1 | AA33: 1 | AB33: 1 | AC33: 53 | AD33: B3 | AF33: =AF31+2*(AF34-AF31)/3 -> 95 | AG33: A*1
A34: Sample student 26 | B34: 0 | C34: 3 | D34: 3 | E34: 2 | F34: 3 | G34: 2 | H34: 0 | I34: 0 | J34: 2 | K34: 0 | L34: 2 | M34: 5 | N34: 1 | O34: 1 | P34: 2 | Q34: 4 | R34: 1 | S34: 1 | T34: 1 | U34: 2 | V34: 4 | W34: 2 | X34: 1 | Y34: 2 | Z34: 0 | AA34: 5 | AB34: 1 | AC34: 50 | AD34: B3 | AF34: 100 | AG34: A*1
A35: Sample student 27 | B35: 2 | C35: 0 | D35: 1 | E35: 1 | F35: 1 | G35: 0 | H35: 2 | I35: 1 | J35: 2 | K35: 3 | L35: 2 | M35: 1 | N35: 0 | O35: 0 | P35: 4 | Q35: 3 | R35: 2 | S35: 5 | T35: 1 | U35: 3 | V35: 1 | W35: 1 | X35: 2 | Y35: 1 | Z35: 1 | AA35: 2 | AB35: 2 | AC35: 44 | AD35: C1
A36: Sample student 28 | B36: 1 | C36: 1 | D36: 2 | E36: 2 | F36: 4 | G36: 3 | H36: 3 | I36: 3 | J36: 3 | K36: 3 | L36: 2 | M36: 3 | N36: 0 | O36: 0 | P36: 2 | Q36: 1 | R36: 1 | S36: 3 | T36: 2 | U36: 1 | V36: 2 | W36: 2 | X36: 1 | Y36: 3 | Z36: 0 | AA36: 1 | AB36: 2 | AC36: 51 | AD36: B3
AF37: 85 | AG37: 68 | AH37: 48 | AI37: 29 | AJ37: 14 | AK37: 7
